fUST/lending_fUST_20250118
["ID","MTS","AMOUNT","RATE_DAILY","PERIOD"]
[349399803,1737165044115,-500.78096393,0.00021917,3]
[349399805,1737165044124,-1630.02,0.00021917,3]
[349399806,1737165044133,-452.56820536,0.00021917,3]
[349399808,1737165044143,-1224.09,0.00021917,3]
[349399811,1737165044152,-501.9849535,0.00021917,3]
[349399813,1737165044161,-500.0,0.00021917,3]
[349399814,1737165044171,-151.0,0.00021917,2]
[349399817,1737165044181,-151.0,0.00021917,2]
[349399819,1737165044190,-151.0,0.00021917,2]
[349399820,1737165044199,-151.0,0.00021917,2]
[349399823,1737165044210,-500.0,0.00021917,3]
[349399825,1737165044219,-249.32409883,0.00021917,3]
[349399827,1737165044229,-151.0,0.00021917,2]
[349399829,1737165044240,-151.0,0.00021917,2]
[349399831,1737165044251,-151.0,0.00021917,2]
[349399832,1737165044262,-152.62943,0.00021917,2]
[349399835,1737165044273,-500.0,0.00021917,3]
[349399836,1737165044283,-504.76129201,0.00021917,3]
[349399838,1737165044292,-500.0,0.00021917,3]
[349399840,1737165044301,-500.0,0.00021917,3]
[349399842,1737165044311,-502.17842822,0.00021917,3]
[349399844,1737165044320,-1110.21,0.00021917,3]
[349399846,1737165044329,-500.0,0.00021917,3]
[349399848,1737165044339,-964.61,0.00021917,3]
[349399851,1737165044350,-500.0,0.00021917,3]
[349399853,1737165044359,-501.98076497,0.00021917,3]
[349399855,1737165044369,-500.99563069,0.00021917,3]
[349399857,1737165044378,-502.62243136,0.00021917,3]
[349399858,1737165044387,-502.27447876,0.00021917,3]
[349399861,1737165044398,-151.381152,0.00021917,2]
[349399863,1737165044407,-4076.15,0.00021917,3]
[349399865,1737165044417,-503.72712187,0.00021917,3]
[349399866,1737165044426,-400.03777653,0.00021917,3]
[349399869,1737165044436,-500.0,0.00021917,3]
[349399871,1737165044451,-500.0,0.00021917,3]
[349399872,1737165044462,-167.141881,0.00021917,2]
[349399874,1737165044471,-500.0,0.00021917,3]
[349399877,1737165044483,-515.46965714,0.00021917,3]
[349399878,1737165044492,-247.50228357,0.00021917,3]
[349399880,1737165044501,-519.58,0.00021917,3]
[349399882,1737165044510,-503.35774658,0.00021917,3]
[349399884,1737165044521,-1112.73,0.00021917,3]
[349399886,1737165044531,-629.45541902,0.00021917,3]
[349399888,1737165044540,-285.23302522,0.00021917,3]
[349399890,1737165044549,-503.31117129,0.00021917,3]
[349399892,1737165044559,-502.69107875,0.00021917,3]
[349399894,1737165044568,-1077.05,0.00021917,3]
[349399896,1737165044577,-833.45,0.00021917,3]
[349399898,1737165044586,-502.33506996,0.00021917,3]
[349399900,1737165044596,-151.0,0.00021917,2]
[349399902,1737165044607,-151.0,0.00021917,2]
[349399905,1737165044617,-227.632053,0.00021917,2]
[349399907,1737165044626,-500.0,0.00021917,3]
[349399908,1737165044635,-528.00326193,0.00021917,3]
[349399910,1737165044644,-500.0,0.00021917,3]
[349399913,1737165044653,-297.17038809,0.00021917,3]
[349399914,1737165044663,-500.0,0.00021917,3]
[349399916,1737165044672,-500.0,0.00021917,3]
[349399919,1737165044682,-500.0,0.00021917,3]
[349399920,1737165044691,-514.37165758,0.00021917,3]
[349399923,1737165044701,-500.0,0.00021917,3]
[349399925,1737165044710,-500.0,0.00021917,3]
[349399927,1737165044720,-500.0,0.00021917,3]
[349399929,1737165044730,-507.14,0.00021917,3]
[349399930,1737165044739,-6269.75,0.00021917,3]
[349399933,1737165044749,-500.0,0.00021917,3]
[349399935,1737165044759,-509.56552761,0.00021917,3]
[349399937,1737165044768,-500.0,0.00021917,3]
[349399939,1737165044777,-831.72,0.00021917,3]
[349399940,1737165044786,-510.24104317,0.00021917,3]
[349399943,1737165044796,-507.20017328,0.00021917,3]
[349399945,1737165044805,-590.0835622,0.00021917,3]
[349399947,1737165044815,-500.0,0.00021917,3]
[349399949,1737165044824,-500.0,0.00021917,3]
[349399951,1737165044834,-500.0,0.00021917,3]
[349399952,1737165044843,-695.5,0.00021917,3]
[349399955,1737165044852,-500.0,0.00021917,3]
[349399956,1737165044862,-500.0,0.00021917,3]
[349399959,1737165044871,-505.9942553,0.00021917,3]
[349399960,1737165044880,-500.0,0.00021917,3]
[349399963,1737165044890,-16666.27,0.00021917,3]
[349399965,1737165044900,-507.43672351,0.00021917,3]
[349399966,1737165044909,-500.0,0.00021917,3]
[349399968,1737165044918,-500.0,0.00021917,3]
[349399970,1737165044927,-500.0,0.00021917,3]
[349399972,1737165044937,-3305.31079835,0.00021926,2]
[349399974,1737165044946,-1000.0,0.00021927,2]
[349399976,1737165044955,-1400.0,0.0002195,4]
[349399979,1737165044966,-1000.0,0.00021958,2]
[349399981,1737165044976,-319.79011135,0.00021969,3]
[349399983,1737165044986,-500.0,0.00021973,2]
[349399984,1737165044995,-500.0,0.00021973,2]
[349399986,1737165045005,-500.6453205,0.00021973,2]
[349399989,1737165045015,-513.27018305,0.00021973,2]
[349399991,1737165045024,-500.95190691,0.00021973,2]
[349399993,1737165045033,-370.67063901,0.00021973,2]
[349399995,1737165045043,-500.0,0.00021973,2]
[349399996,1737165045053,-530.63688864,0.00021973,2]
[349399999,1737165045063,-500.0,0.00021973,2]
[349400001,1737165045073,-500.0,0.00021973,2]
[349400003,1737165045083,-178.16620271,0.00021973,2]
[349400004,1737165045094,-269.0229112,0.00021973,2]
[349400007,1737165045104,-160.15247581,0.00021973,2]
[349400009,1737165045114,-259.28773032,0.00021973,2]
[349400011,1737165045123,-269.26745892,0.00021973,2]
[349400013,1737165045133,-151.16487548,0.00021973,2]
[349400015,1737165045143,-167.68469921,0.00021973,2]
[349400017,1737165045152,-267.05085053,0.00021973,2]
[349400019,1737165045162,-400.32751017,0.00021973,2]
[349400021,1737165045171,-178.40850212,0.00021973,2]
[349400023,1737165045181,-151.15300074,0.00021973,2]
[349400025,1737165045190,-151.17147744,0.00021973,2]
[349400027,1737165045200,-180.19839548,0.00021973,2]
[349400029,1737165045209,-151.16650448,0.00021973,2]
[349400031,1737165045220,-265.8973136,0.00021973,2]
[349400033,1737165045229,-160.18162626,0.00021973,2]
[349400035,1737165045239,-167.67849016,0.00021973,2]
[349400037,1737165045248,-501.78187173,0.00021973,2]
[349400039,1737165045257,-500.95448802,0.00021973,2]
[349400041,1737165045267,-500.56775494,0.00021973,2]
[349400043,1737165045277,-500.0,0.00021973,2]
[349400045,1737165045287,-500.1925142,0.00021973,2]
[349400047,1737165045297,-501.89585286,0.00021973,2]
[349400049,1737165045308,-158.07350526,0.00021973,2]
[349400051,1737165045317,-260.41167747,0.00021973,2]
[349400053,1737165045328,-167.67849558,0.00021973,2]
[349400055,1737165045339,-505.60701997,0.00021973,2]
[349400057,1737165045348,-501.78654135,0.00021973,2]
[349400059,1737165045358,-501.64786877,0.00021973,2]
[349400061,1737165045368,-280.18178662,0.00021973,2]
[349400063,1737165045378,-157.8223854,0.00021973,2]
[349400065,1737165045387,-271.53208326,0.00021973,2]
[349400067,1737165045397,-155.17090776,0.00021973,2]
[349400068,1737165045406,-500.98137416,0.00021973,2]
[349400069,1737165045415,-267.08037825,0.00021973,2]
[349400070,1737165045426,-501.67575143,0.00021973,2]
[349400071,1737165045435,-268.91735379,0.00021973,2]
[349400072,1737165045447,-557.68790823,0.00021973,2]
[349400073,1737165045456,-502.46198162,0.00021973,2]
[349400074,1737165045466,-266.58335379,0.00021973,2]
[349400075,1737165045475,-501.0803478,0.00021973,2]
[349400076,1737165045485,-1000.0,0.00021978,2]
[349400077,1737165045494,-1000.0,0.00021995,2]
[349400079,1737165045504,-164.25872665,0.00022,2]
[349400081,1737165045513,-620.0,0.00022,2]
[349400083,1737165045524,-433.74673501,0.00022035,2]
[349400085,1737165045534,-319.79011135,0.00022038,3]
[349400087,1737165045544,-465.27976907,0.00022038,2]
[349400090,1737165045553,-150.257,0.00022041,2]
[349400092,1737165045563,-397.549,0.00022041,2]
[349400093,1737165045573,-500.0,0.00022054,3]
[349400096,1737165045584,-500.0,0.00022054,3]
[349400098,1737165045594,-500.0,0.00022054,3]
[349400099,1737165045603,-500.0,0.00022054,3]
[349400101,1737165045614,-500.0,0.00022054,3]
[349400104,1737165045623,-500.0,0.00022054,3]
[349400105,1737165045633,-500.0,0.00022054,3]
[349400108,1737165045647,-525.99541932,0.00022054,3]
[349400110,1737165045658,-500.0,0.00022054,3]
[349400111,1737165045667,-500.0,0.00022054,3]
[349400113,1737165045677,-500.0,0.00022054,3]
[349400115,1737165045687,-500.0,0.00022054,3]
[349400117,1737165045697,-500.0,0.00022054,3]
[349400120,1737165045706,-500.0,0.00022054,3]
[349400121,1737165045716,-500.0,0.00022054,3]
[349400130,1737165045752,-500.0,0.00022054,3]
[349400133,1737165045762,-500.0,0.00022054,3]
[349400136,1737165045771,-500.0,0.00022054,3]
[349400139,1737165045781,-500.0,0.00022054,3]
[349400142,1737165045790,-500.0,0.00022054,3]
[349400145,1737165045799,-500.0,0.00022054,3]
[349400147,1737165045809,-265.76254593,0.00022054,3]
[349400149,1737165045819,-520.39539086,0.00022054,3]
[349400151,1737165045828,-500.0,0.00022054,3]
[349400153,1737165045837,-500.0,0.00022054,3]
[349400155,1737165045847,-500.0,0.00022054,3]
[349400157,1737165045856,-502.99086153,0.00022054,3]
[349400159,1737165045866,-500.0,0.00022054,3]
[349400161,1737165045874,-500.0,0.00022054,3]
[349400163,1737165045884,-158.27036191,0.00022054,3]
[349400165,1737165045893,-500.0,0.00022054,3]
[349400167,1737165045903,-500.0,0.00022054,3]
[349400168,1737165045912,-502.92546605,0.00022054,3]
[349400170,1737165045921,-670.36,0.00022054,3]
[349400173,1737165045931,-505.64105026,0.00022054,3]
[349400175,1737165045941,-500.0,0.00022054,3]
[349400177,1737165045951,-500.0,0.00022054,3]
[349400180,1737165045961,-501.97059697,0.00022054,3]
[349400181,1737165045972,-500.0,0.00022054,3]
[349400184,1737165045982,-500.0,0.00022054,3]
[349400186,1737165045992,-509.17437858,0.00022054,3]
[349400187,1737165046001,-501.5002173,0.00022054,3]
[349400189,1737165046011,-500.0,0.00022054,3]
[349400191,1737165046020,-500.0,0.00022054,3]
[349400193,1737165046030,-500.0,0.00022054,3]
[349400196,1737165046039,-500.0,0.00022054,3]
[349400197,1737165046048,-500.0,0.00022054,3]
[349400200,1737165046058,-500.0,0.00022054,3]
[349400202,1737165046067,-500.0,0.00022054,3]
[349400203,1737165046077,-500.0,0.00022054,3]
[349400206,1737165046087,-500.0,0.00022054,3]
[349400207,1737165046096,-508.16707407,0.00022054,3]
[349400209,1737165046106,-500.0,0.00022054,3]
[349400212,1737165046116,-500.0,0.00022054,3]
[349400213,1737165046125,-150.14879036,0.00022054,3]
[349400215,1737165046135,-531.47593586,0.00022054,3]
[349400216,1737165046144,-1526.67,0.00022054,3]
[349400218,1737165046153,-500.0,0.00022054,3]
[349400219,1737165046162,-500.0,0.00022054,3]
[349400220,1737165046171,-478.13066712,0.00022054,3]
[349400222,1737165046181,-500.0,0.00022054,3]
[349400223,1737165046191,-500.0,0.00022054,3]
[349400225,1737165046200,-500.0,0.00022054,3]
[349400227,1737165046209,-960.98,0.00022054,3]
[349400228,1737165046221,-511.27083661,0.00022054,3]
[349400230,1737165046230,-3511.61,0.00022054,3]
[349400231,1737165046239,-500.0,0.00022054,3]
[349400232,1737165046249,-500.0,0.00022054,3]
[349400234,1737165046259,-500.0,0.00022054,3]
[349400235,1737165046268,-500.0,0.00022054,3]
[349400237,1737165046278,-2961.83,0.00022054,3]
[349400238,1737165046287,-1289.87,0.00022054,3]
[349400240,1737165046297,-500.0,0.00022054,3]
[349400241,1737165046306,-955.26080334,0.00022054,3]
[349400243,1737165046316,-500.0,0.00022054,3]
[349400244,1737165046327,-500.0,0.00022054,3]
[349400246,1737165046337,-500.0,0.00022054,3]
[349400248,1737165046346,-506.92391759,0.00022054,3]
[349400249,1737165046355,-524.22,0.00022054,3]
[349400251,1737165046365,-509.1744778,0.00022054,3]
[349400252,1737165046375,-264.86822351,0.00022054,3]
[349400254,1737165046384,-500.0,0.00022054,2]
[349400256,1737165046398,-500.0,0.00022054,3]
[349400257,1737165046408,-543.71430096,0.00022054,3]
[349400259,1737165046417,-986.15,0.00022054,3]
[349400261,1737165046426,-500.0,0.00022054,3]
[349400262,1737165046436,-500.0,0.00022054,3]
[349400264,1737165046449,-511.81298908,0.00022054,3]
[349400265,1737165046458,-500.0,0.00022054,3]
[349400267,1737165046470,-500.0,0.00022054,3]
[349400269,1737165046479,-509.3486141,0.00022054,3]
[349400270,1737165046490,-500.0,0.00022054,3]
[349400272,1737165046499,-500.0,0.00022054,3]
[349400274,1737165046509,-2745.37,0.00022054,3]
[349400275,1737165046519,-200.0,0.00022054,3]
[349400277,1737165046530,-620.88885521,0.00022054,3]
[349400278,1737165046539,-500.0,0.00022054,3]
[349400280,1737165046548,-500.0,0.00022054,3]
[349400282,1737165046561,-500.0,0.00022054,3]
[349400283,1737165046570,-500.0,0.00022054,3]
[349400285,1737165046579,-500.0,0.00022054,3]
[349400287,1737165046589,-500.0,0.00022054,3]
[349400288,1737165046599,-500.0,0.00022054,3]
[349400290,1737165046609,-500.0,0.00022054,3]
[349400292,1737165046619,-500.0,0.00022054,3]
[349400293,1737165046628,-500.0,0.00022054,3]
[349400295,1737165046638,-500.0,0.00022054,3]
[349400296,1737165046647,-500.0,0.00022054,3]
[349400299,1737165046657,-500.0,0.00022054,3]
[349400302,1737165046667,-1630.02,0.00022054,3]
[349400304,1737165046678,-1224.09,0.00022054,3]
[349400307,1737165046688,-500.0,0.00022054,3]
[349400310,1737165046698,-500.0,0.00022054,3]
[349400312,1737165046708,-500.0,0.00022054,3]
[349400315,1737165046717,-500.0,0.00022054,3]
[349400316,1737165046727,-500.0,0.00022054,3]
[349400318,1737165046736,-1110.21,0.00022054,3]
[349400320,1737165046746,-500.0,0.00022054,3]
[349400321,1737165046757,-964.61,0.00022054,3]
[349400323,1737165046767,-500.0,0.00022054,3]
[349400325,1737165046777,-4076.15,0.00022054,3]
[349400326,1737165046787,-510.96982382,0.00022054,3]
[349400328,1737165046798,-524.71115207,0.00022054,3]
[349400330,1737165046807,-506.14266622,0.00022054,3]
[349400331,1737165046817,-519.58,0.00022054,3]
[349400333,1737165046827,-1112.73,0.00022054,3]
[349400334,1737165046837,-1077.05,0.00022054,3]
[349400336,1737165046848,-833.45,0.00022054,3]
[349400338,1737165046857,-500.0,0.00022054,3]
[349400339,1737165046867,-500.0,0.00022054,3]
[349400341,1737165046877,-299.59521393,0.00022054,3]
[349400342,1737165046886,-504.85242972,0.00022054,3]
[349400344,1737165046897,-500.0,0.00022054,3]
[349400346,1737165046907,-500.0,0.00022054,3]
[349400347,1737165046917,-500.0,0.00022054,3]
[349400349,1737165046926,-500.0,0.00022054,3]
[349400351,1737165046936,-507.14,0.00022054,3]
[349400352,1737165046946,-6269.75,0.00022054,3]
[349400354,1737165046955,-500.0,0.00022054,3]
[349400356,1737165046966,-500.0,0.00022054,3]
[349400357,1737165046975,-831.72,0.00022054,3]
[349400359,1737165046985,-500.0,0.00022054,3]
[349400361,1737165046995,-509.94868592,0.00022054,3]
[349400362,1737165047004,-500.0,0.00022054,3]
[349400364,1737165047014,-695.5,0.00022054,3]
[349400366,1737165047024,-500.0,0.00022054,3]
[349400367,1737165047034,-500.0,0.00022054,3]
[349400369,1737165047043,-500.0,0.00022054,3]
[349400371,1737165047054,-16666.27,0.00022054,3]
[349400372,1737165047064,-513.44370088,0.00022054,3]
[349400374,1737165047076,-500.0,0.00022054,3]
[349400376,1737165047086,-278.72684767,0.00022054,3]
[349400377,1737165047101,-500.0,0.00022073,2]
[349400379,1737165047112,-502.46888492,0.00022073,2]
[349400381,1737165047122,-164.25872665,0.00022091,2]
[349400382,1737165047131,-786.42936095,0.000221,2]
[349400384,1737165047142,-786.42936092,0.000221,2]
[349400385,1737165047152,-786.42936092,0.000221,2]
[349400387,1737165047161,-786.42936092,0.000221,2]
[349400389,1737165047171,-319.79011135,0.00022107,3]
[349400390,1737165047180,-446.7105669,0.00022137,2]
[349400392,1737165047190,-310.2698121,0.00022137,2]
[349400393,1737165047200,-612.73815475,0.00022173,2]
[349400394,1737165047210,-319.79011135,0.00022176,3]
[349400395,1737165047220,-500.0,0.00022191,3]
[349400396,1737165047230,-547.00133538,0.00022191,3]
[349400397,1737165047240,-500.0,0.00022191,3]
[349400398,1737165047250,-500.0,0.00022191,3]
[349400399,1737165047259,-314.34818523,0.00022191,3]
[349400400,1737165047269,-500.0,0.00022191,3]
[349400401,1737165047280,-505.83229159,0.00022191,3]
[349400402,1737165047291,-500.54674585,0.00022191,3]
[349400403,1737165047301,-500.0,0.00022191,3]
[349400404,1737165047311,-500.0,0.00022191,3]
[349400405,1737165047321,-500.0,0.00022191,3]
[349400407,1737165047330,-500.0,0.00022191,3]
[349400409,1737165047340,-500.0,0.00022191,3]
[349400411,1737165047349,-501.97005949,0.00022191,3]
[349400413,1737165047359,-277.92451724,0.00022191,3]
[349400415,1737165047369,-500.0,0.00022191,3]
[349400417,1737165047378,-500.0,0.00022191,3]
[349400419,1737165047388,-605.32204062,0.00022191,3]
[349400421,1737165047397,-500.0,0.00022191,3]
[349400423,1737165047408,-506.69736025,0.00022191,3]
[349400424,1737165047418,-500.0,0.00022191,3]
[349400426,1737165047427,-560.34414577,0.00022191,3]
[349400429,1737165047437,-500.0,0.00022191,3]
[349400430,1737165047451,-500.0,0.00022191,3]
[349400432,1737165047461,-649.67087909,0.00022191,3]
[349400433,1737165047471,-428.16579303,0.00022191,3]
[349400434,1737165047481,-500.0,0.00022191,3]
[349400435,1737165047493,-670.36,0.00022191,3]
[349400437,1737165047503,-500.0,0.00022191,3]
[349400439,1737165047514,-500.0,0.00022191,3]
[349400440,1737165047525,-500.0,0.00022191,3]
[349400441,1737165047536,-500.0,0.00022191,3]
[349400442,1737165047545,-625.62123509,0.00022191,3]
[349400443,1737165047555,-253.30828943,0.00022191,3]
[349400444,1737165047565,-500.0,0.00022191,3]
[349400445,1737165047575,-500.0,0.00022191,3]
[349400446,1737165047585,-208.74047966,0.00022191,3]
[349400447,1737165047595,-500.0,0.00022191,3]
[349400448,1737165047606,-500.0,0.00022191,3]
[349400449,1737165047617,-515.24068886,0.00022191,3]
[349400450,1737165047627,-516.35204645,0.00022191,3]
[349400451,1737165047637,-195.77043625,0.00022191,3]
[349400452,1737165047648,-1526.67,0.00022191,3]
[349400453,1737165047659,-500.0,0.00022191,3]
[349400454,1737165047669,-500.0,0.00022191,3]
[349400455,1737165047679,-500.0,0.00022191,3]
[349400456,1737165047688,-398.47449481,0.00022191,3]
[349400457,1737165047699,-500.0,0.00022191,3]
[349400458,1737165047709,-960.98,0.00022191,3]
[349400459,1737165047720,-3511.61,0.00022191,3]
[349400460,1737165047729,-500.0,0.00022191,3]
[349400461,1737165047740,-500.0,0.00022191,3]
[349400462,1737165047750,-172.89934285,0.00022191,3]
[349400463,1737165047761,-505.28653193,0.00022191,3]
[349400464,1737165047771,-2961.83,0.00022191,3]
[349400465,1737165047780,-1289.87,0.00022191,3]
[349400466,1737165047790,-167.74553865,0.00022191,3]
[349400467,1737165047800,-524.22,0.00022191,3]
[349400468,1737165047809,-500.0,0.00022191,2]
[349400469,1737165047819,-535.15976689,0.00022191,3]
[349400470,1737165047829,-986.15,0.00022191,3]
[349400471,1737165047838,-500.0,0.00022191,3]
[349400472,1737165047848,-377.0316432,0.00022191,3]
[349400473,1737165047858,-500.0,0.00022191,3]
[349400474,1737165047868,-301.67770076,0.00022191,3]
[349400475,1737165047878,-500.0,0.00022191,3]
[349400476,1737165047888,-500.0,0.00022191,3]
[349400477,1737165047898,-2745.37,0.00022191,3]
[349400478,1737165047907,-295.44357934,0.00022191,3]
[349400479,1737165047921,-500.0,0.00022191,3]
[349400480,1737165047932,-500.0,0.00022191,3]
[349400481,1737165047942,-486.85782077,0.00022191,3]
[349400482,1737165047951,-500.0,0.00022191,3]
[349400483,1737165047961,-500.0,0.00022191,3]
[349400484,1737165047971,-500.0,0.00022191,3]
[349400485,1737165047980,-500.0,0.00022191,3]
[349400486,1737165047990,-500.0,0.00022191,3]
[349400487,1737165048000,-500.0,0.00022191,3]
[349400488,1737165048010,-500.0,0.00022191,3]
[349400489,1737165048020,-163.99019952,0.00022191,3]
[349400490,1737165048030,-500.0,0.00022191,3]
[349400491,1737165048040,-500.0,0.00022191,3]
[349400492,1737165048049,-1630.02,0.00022191,3]
[349400493,1737165048059,-1224.09,0.00022191,3]
[349400494,1737165048070,-500.0,0.00022191,3]
[349400495,1737165048080,-500.0,0.00022191,3]
[349400496,1737165048090,-500.0,0.00022191,3]
[349400497,1737165048100,-516.57959653,0.00022191,3]
[349400498,1737165048110,-500.0,0.00022191,3]
[349400499,1737165048121,-1110.21,0.00022191,3]
[349400500,1737165048132,-542.35976511,0.00022191,3]
[349400502,1737165048141,-964.61,0.00022191,3]
[349400504,1737165048151,-500.0,0.00022191,3]
[349400506,1737165048161,-4076.15,0.00022191,3]
[349400507,1737165048171,-519.58,0.00022191,3]
[349400508,1737165048181,-1112.73,0.00022191,3]
[349400509,1737165048191,-1077.05,0.00022191,3]
[349400511,1737165048201,-833.45,0.00022191,3]
[349400513,1737165048211,-500.0,0.00022191,3]
[349400515,1737165048222,-613.79651422,0.00022191,3]
[349400517,1737165048232,-506.03964115,0.00022191,3]
[349400518,1737165048241,-510.42047922,0.00022191,3]
[349400519,1737165048251,-500.0,0.00022191,3]
[349400520,1737165048261,-500.0,0.00022191,3]
[349400521,1737165048271,-507.14,0.00022191,3]
[349400522,1737165048281,-6269.75,0.00022191,3]
[349400523,1737165048291,-519.74071095,0.00022191,3]
[349400525,1737165048301,-500.0,0.00022191,3]
[349400527,1737165048311,-831.72,0.00022191,3]
[349400529,1737165048321,-500.0,0.00022191,3]
[349400531,1737165048331,-500.0,0.00022191,3]
[349400533,1737165048341,-695.5,0.00022191,3]
[349400534,1737165048350,-500.0,0.00022191,3]
[349400535,1737165048360,-500.0,0.00022191,3]
[349400536,1737165048370,-500.0,0.00022191,3]
[349400537,1737165048380,-16666.27,0.00022191,3]
[349400538,1737165048390,-500.0,0.00022191,3]
[349400539,1737165048399,-546.16,0.000222,2]
[349400540,1737165048409,-319.79011135,0.00022245,3]
[349400541,1737165048418,-300.0,0.000223,10]
[349400542,1737165048428,-319.79011135,0.00022314,3]
[349400543,1737165048439,-500.0,0.00022327,2]
[349400544,1737165048452,-201.64794878,0.00022327,2]
[349400545,1737165048462,-327.81773051,0.00022327,2]
[349400546,1737165048472,-500.0,0.00022328,3]
[349400547,1737165048483,-500.0,0.00022328,3]
[349400548,1737165048492,-526.22834004,0.00022328,3]
[349400549,1737165048502,-629.90508738,0.00022328,3]
[349400550,1737165048511,-274.65293117,0.00022328,3]
[349400551,1737165048524,-150.17239627,0.00022328,3]
[349400552,1737165048534,-523.63786359,0.00022328,3]
[349400553,1737165048544,-500.0,0.00022328,3]
[349400554,1737165048554,-500.0,0.00022328,3]
[349400555,1737165048563,-458.70801143,0.00022328,3]
[349400556,1737165048573,-627.24423358,0.00022328,3]
[349400557,1737165048583,-500.0,0.00022328,3]
[349400558,1737165048592,-500.0,0.00022328,3]
[349400559,1737165048601,-500.0,0.00022328,3]
[349400560,1737165048612,-500.0,0.00022328,3]
[349400561,1737165048622,-500.0,0.00022328,3]
[349400562,1737165048631,-500.0,0.00022328,3]
[349400563,1737165048641,-500.0,0.00022328,3]
[349400564,1737165048651,-500.0,0.00022328,3]
[349400565,1737165048660,-500.0,0.00022328,3]
[349400566,1737165048671,-500.0,0.00022328,3]
[349400567,1737165048680,-500.0,0.00022328,3]
[349400568,1737165048689,-670.36,0.00022328,3]
[349400569,1737165048699,-505.01667482,0.00022328,3]
[349400570,1737165048709,-322.43250075,0.00022328,3]
[349400571,1737165048719,-500.0,0.00022328,3]
[349400572,1737165048729,-621.89818014,0.00022328,3]
[349400573,1737165048739,-500.0,0.00022328,3]
[349400574,1737165048748,-505.17752471,0.00022328,3]
[349400575,1737165048758,-451.14034366,0.00022328,3]
[349400576,1737165048768,-500.0,0.00022328,3]
[349400577,1737165048778,-1526.67,0.00022328,3]
[349400578,1737165048787,-500.0,0.00022328,3]
[349400579,1737165048797,-409.84399648,0.00022328,3]
[349400580,1737165048807,-500.0,0.00022328,3]
[349400581,1737165048817,-397.24271196,0.00022328,3]
[349400582,1737165048827,-960.98,0.00022328,3]
[349400583,1737165048838,-3511.61,0.00022328,3]
[349400584,1737165048847,-500.0,0.00022328,3]
[349400585,1737165048857,-500.0,0.00022328,3]
[349400586,1737165048868,-2961.83,0.00022328,3]
[349400587,1737165048878,-1289.87,0.00022328,3]
[349400588,1737165048889,-524.22,0.00022328,3]
[349400589,1737165048899,-500.0,0.00022328,2]
[349400590,1737165048909,-986.15,0.00022328,3]
[349400591,1737165048919,-500.0,0.00022328,3]
[349400592,1737165048929,-500.0,0.00022328,3]
[349400593,1737165048939,-500.0,0.00022328,3]
[349400594,1737165048950,-500.0,0.00022328,3]
[349400595,1737165048960,-2745.37,0.00022328,3]
[349400596,1737165048972,-500.0,0.00022328,3]
[349400597,1737165048982,-500.0,0.00022328,3]
[349400598,1737165048992,-500.0,0.00022328,3]
[349400599,1737165049003,-500.0,0.00022328,3]
[349400600,1737165049013,-319.77843323,0.00022328,3]
[349400601,1737165049023,-500.0,0.00022328,3]
[349400602,1737165049033,-281.11086751,0.00022328,3]
[349400603,1737165049043,-500.0,0.00022328,3]
[349400604,1737165049054,-500.0,0.00022328,3]
[349400605,1737165049064,-500.0,0.00022328,3]
[349400606,1737165049187,-530.97044087,0.00022328,3]
[349400607,1737165049198,-1630.02,0.00022328,3]